Cogmind - Beta 12 @@@ ROGUE MODE // 2023.04.03 @ 13:19:12 Player: Rohain Result: Destroyed by G-47 Trooper with Particle Gun Performance ------------- Evolutions (3) 1500 Regions Visited (7) 1400 Robots Destroyed (59) 295 Value Destroyed (1412) 1412 Prototype IDs (11) 220 Alien Tech Used (0) 0 Bonus (943) 943 TOTAL SCORE: 5770 Bonus ------- High Alert Combat Kills 13 Follower Combat Kills 460 Entered DSFs 500 Friendly Fire -30 Cogmind --------- Core Integrity 0/700 Matter 300/300 Energy 100/100 System Corruption 0% Temperature Cool (9) Movement Flying (67) Location -7/DSF Parts ------- > --- POWER (1) -------- (None) > --- PROPULSION (4) --- Flying Surge Exoskeleton > --- UTILITY (5) ------ Armored Scrap Engine > --- WEAPON (3) ------- Great Axe Great Axe > --- INVENTORY (5) ---- Advanced Heat Sink Transmission Jammer Improved Datajack Peak State ------------ > --- POWER ------------ Momentum-Ion Engine > --- PROPULSION ------- Flying Surge Exoskeleton > --- UTILITY ---------- Armored Scrap Engine Small Storage Unit Improved Targeting Computer > --- WEAPON ----------- Great Axe Great Axe Great Axe > --- INVENTORY -------- Advanced Heat Sink Transmission Jammer Improved Datajack [Rating: 48] Favorites ----------- Power Constructs Engine Constructs Power Core Light Nuclear Core Reactor Cold Fusion Reactor Propulsion Aluminum Leg Leg Aluminum Leg Flight Unit Constructs Utility Cooling System Device Cooling System Storage Large Storage Unit Processor Improved Targeting Computer Weapon Assault Rifle Energy Gun Beam Rifle Energy Cannon Advanced Beam Cannon Ballistic Gun Assault Rifle Launcher Mini Grenade Launcher Slashing Weapon Great Axe Build | -11 -10 -10 -9 -9 -9 -7 -7 ------- Run | Jun Mat Min Mat Sto Rec Fac DSF Slots Evolved 6 | . . . 2 . . 4 . Power . | . . . . . . . . Propulsion 2 | . . . 2 . . . . Utility 3 | . . . . . . 3 . Weapon 1 | . . . . . . 1 . Parts Attached 61 | 6 6 . 16 15 7 4 7 Power 9 | 1 . . 3 5 . . . Engine 7 | 1 . . 2 4 . . . Core 1 | . . . 1 . . . . Reactor 1 | . . . . 1 . . . Propulsion 15 | 2 2 . 7 2 2 . . Treads . | . . . . . . . . Leg 15 | 2 2 . 7 2 2 . . Wheel . | . . . . . . . . Hover . | . . . . . . . . Flight . | . . . . . . . . Utility 13 | 1 4 . 1 1 1 4 1 Device 6 | . 1 . . 1 1 2 1 Storage 6 | 1 3 . 1 . . 1 . Processor 1 | . . . . . . 1 . Hackware . | . . . . . . . . Protection . | . . . . . . . . Artifact . | . . . . . . . . Weapon 24 | 2 . . 5 7 4 . 6 Energy Gun 10 | . . . 4 4 . . 2 Energy Cannon 2 | . . . . 2 . . . Ballistic Gun 8 | 2 . . 1 . 4 . 1 Ballistic Cannon . | . . . . . . . . Launcher 1 | . . . . 1 . . . Special Weapon . | . . . . . . . . Impact Weapon . | . . . . . . . . Slashing Weapon 3 | . . . . . . . 3 Piercing Weapon . | . . . . . . . . Special Melee Weapon . | . . . . . . . . Unidentified Prototypes 7 | . . . 1 6 . . . Parts Lost 18 | . . . 6 1 . . 11 Power 3 | . . . 2 . . . 1 Propulsion 7 | . . . 4 . . . 3 Utility 3 | . . . . 1 . . 2 Weapon 5 | . . . . . . . 5 Highest Loss Streak 6 | . . . 3 1 . . 6 To Critical Strikes 1 | . . . . . . . 1 Average Slot Usage (%) 81 | . 99 100 99 99 52 57 54 Engine 7 | . 14 14 8 11 . . 4 Reactor 2 | . . . . . 8 7 1 Leg 26 | . 28 28 43 43 9 2 5 Device 11 | . 13 14 11 10 11 12 9 Storage 8 | . 14 14 11 11 . 6 6 Processor 1 | . . . . . . 7 7 Energy Gun 8 | . . . 20 11 4 7 6 Energy Cannon 1 | . . . . 10 . . . Ballistic Gun 10 | . 28 28 1 . 13 7 3 Naked Turns . | . . . . . . . . Heaviest Build 37 | 14 21 21 35 37 36 26 28 Greatest Support 52 | 20 26 26 52 40 40 49 49 Greatest Overweight (x) 6 | . . . 1 1 6 1 . Average Overweight (x) . | . . . . . 1 . . Largest Inventory Capacity 15 | 8 15 10 15 15 15 8 8 Average Capacity 10 | 7 9 10 14 15 5 7 7 Most Carried 15 | 5 10 10 15 15 15 2 6 Average Carried 7 | 2 8 10 10 14 2 . 3 Final Capacity 15 | 8 10 10 15 15 5 8 5 Final Carried 15 | 2 10 10 15 15 2 2 3 Scrap Engine Consumption 46 | . . . . . 34 3 9 Constructs Created 4 | . . . . . 4 . . Constructs Modified 12 | . . . . . 5 3 4 Class Distribution -------------------- 55% | Mutant 25% | Commander-Construct 14% | Scavenger-Mutant 3% | Construct Dominant Class ---------------- Mutant | -10/Materials Mutant | -10/Mines Mutant | -9/Materials Mutant | -9/Storage Commander-Construct | -9/Recycling Commander-Construct | -7/Factory Construct | -7/DSF Resources | -11 -10 -10 -9 -9 -9 -7 -7 ----------- Run | Jun Mat Min Mat Sto Rec Fac DSF Matter Collected 1146 | 114 324 115 158 135 188 . 112 Remotely . | . . . . . . . . Salvage Created 2248 | . 240 52 909 281 451 23 292 Parts 134 | . 19 1 56 17 14 2 25 Haulers Intercepted 4 | . 1 . 1 2 . . . Recyclers Shooed 11 | . 2 . 1 . 8 . . Parts Field Recycled . | . . . . . . . . Retrieved Matter . | . . . . . . . . Parts Self-Destructed . | . . . . . . . . Prevented . | . . . . . . . . Kills | -11 -10 -10 -9 -9 -9 -7 -7 ------- Run | Jun Mat Min Mat Sto Rec Fac DSF Combat Hostiles Destroyed 38 | . 8 1 18 2 2 . 7 Melee 3 | . . . . . . . 3 Guns 30 | . 8 1 15 . 2 . 4 Cannons 2 | . . . . 2 . . . Classes Destroyed 15 | . 4 . 5 1 . 1 4 Worker 6 | . . . 4 2 . . . Builder 1 | . . . . . . 1 . Hauler 4 | . 1 . 1 2 . . . Recycler 6 | . . . . 1 5 . . Operator 2 | . 1 . . 1 . . . Watcher 2 | . . . 2 . . . . Swarmer 10 | . 6 . 3 1 . . . Cutter 3 | . . . . . . . 3 Grunt 13 | . 2 1 9 . 1 . . Brawler 1 | . . . 1 . . . . Duelist 1 | . . . 1 . . . . Sentry 6 | . . . 4 1 1 . . Specialist 1 | . . . . . . . 1 Hunter 2 | . . . . . . . 2 Heavy 1 | . . . . . . . 1 Best Kill Streak 8 | . 3 1 8 3 2 1 3 Combat Bots Only 8 | . 3 1 8 2 1 . 3 Max Kills in Single Turn 1 | . 1 1 1 1 1 1 1 Gunslinging . | . . . . . . . . Exploded . | . . . . . . . . Melee 1 | . . . . . . . 1 Uniques/NPCs Destroyed . | . . . . . . . . Combat | -11 -10 -10 -9 -9 -9 -7 -7 -------- Run | Jun Mat Min Mat Sto Rec Fac DSF Damage Taken 3961 | . 281 34 881 159 131 . 2475 Core 1027 | . 31 . 194 28 71 . 703 Absorbed by Shields 99 | . . . . . 10 . 89 Regen/Repaired (Parts) 285 | . . . . . 37 . 248 Core Remaining (%) 71 | 100 . 87 . . 26 . . Volleys Fired 178 | . 39 1 63 27 24 1 23 Largest 3 | . 2 2 2 2 2 2 3 Hottest 124 | . 40 40 112 124 85 85 119 Shots Fired 345 | . 78 2 126 51 46 2 40 Gun 320 | . 78 2 126 26 46 2 40 Cannon 24 | . . . . 24 . . . Launcher 1 | . . . . 1 . . . Special . | . . . . . . . . Kinetic 132 | . 78 2 2 . 33 1 16 Thermal 212 | . . . 124 50 13 1 24 Explosive 1 | . . . . 1 . . . Electromagnetic . | . . . . . . . . Robot Hit Streak 10 | . 9 1 10 5 8 4 6 Robot Miss Streak 4 | . 3 1 3 4 3 . 3 Penetration Max . | . . . . . . . . Secondary Targets 1 | . 1 . . . . . . Max Gunslinging Chain 1 | . 1 . . . . . . Shots Hit Robots 231 | . 52 1 88 21 27 1 41 Core Hits 82 | . 14 2 32 8 11 1 14 Critical Kills . | . . . . . . . . Critical Parts Destroyed . | . . . . . . . . Critical Strikes 12 | . . . 9 1 . . 2 Burn 10 | . . . 9 1 . . . Sever 2 | . . . . . . . 2 Melee Attacks 23 | . . . . . . . 23 Impact . | . . . . . . . . Slashing 23 | . . . . . . . 23 Piercing . | . . . . . . . . Sneak Attacks . | . . . . . . . . Combat Hostiles . | . . . . . . . . Follow-up Attacks 5 | . . . . . . . 5 Damage Inflicted 3705 | . 656 27 1332 462 420 17 791 Guns 2925 | . 656 27 1332 156 420 17 317 Cannons 306 | . . . . 306 . . . Explosions . | . . . . . . . . Melee 474 | . . . . . . . 474 Ramming . | . . . . . . . . Kinetic 1160 | . 656 27 21 . 325 17 114 Thermal 2071 | . . . 1311 462 95 . 203 Explosive . | . . . . . . . . Electromagnetic . | . . . . . . . . Impact . | . . . . . . . . Slashing 474 | . . . . . . . 474 Piercing . | . . . . . . . . Highest Corruption . | . . . . . . . . Average Corruption . | . . . . . . . . Corruption Purged . | . . . . . . . . Corruption Blocked . | . . . . . . . . Overload Shots . | . . . . . . . . Overflow Damage 2 | . . . . . . . 2 Projectiles . | . . . . . . . . Explosions . | . . . . . . . . Melee 2 | . . . . . . . 2 Knockbacks . | . . . . . . . . Impact . | . . . . . . . . Kinetic . | . . . . . . . . Secondary . | . . . . . . . . Self-Inflicted Damage . | . . . . . . . . Shots . | . . . . . . . . Rammed . | . . . . . . . . Targets Rammed . | . . . . . . . . Kicked . | . . . . . . . . Crushed . | . . . . . . . . Highest Temperature 66 | . . . 8 66 16 . . Average Temperature 11 | . . . 2 19 5 . . Received Heat Transfer 650 | . 72 18 279 96 59 . 126 Siege Activations . | . . . . . . . . Robots Corrupted . | . . . . . . . . Combat Hostiles . | . . . . . . . . Parts Fried 1 | . . . . 1 . . . Impact Corruptions . | . . . . . . . . Robots Melted 4 | . . . 4 . . . . Combat Hostiles 3 | . . . 3 . . . . Parts Melted 8 | . . . 7 1 . . . Heat Transferred 5663 | . . . 3922 925 222 . 594 Parts Sabotaged . | . . . . . . . . Parts Stolen . | . . . . . . . . Parts Stripped . | . . . . . . . . Power Chain Reactions . | . . . . . . . . Missiles Intercepted . | . . . . . . . . Alert | -11 -10 -10 -9 -9 -9 -7 -7 ------- Run | Jun Mat Min Mat Sto Rec Fac DSF Peak Influence 794 | . 379 108 331 794 345 36 80 Initial 309 | . . 78 41 94 309 25 25 Average 190 | . 135 106 192 386 223 27 44 Maximum Alert Level 3 | . 1 . 1 3 1 . . Low Security (%) 63 | 100 73 100 50 30 56 100 100 Level 1 27 | . 26 . 49 17 43 . . Level 2 6 | . . . . 37 . . . Level 3 2 | . . . . 14 . . . Level 4 . | . . . . . . . . Level 5 . | . . . . . . . . High Security . | . . . . . . . . Max Security . | . . . . . . . . Squads Dispatched 7 | . . . 1 3 . . 3 Investigation . | . . . . . . . . Extermination . | . . . . . . . . Reinforcement 6 | . . . 1 2 . . 3 Assault . | . . . . . . . . Garrison 1 | . . . . 1 . . . Intercept . | . . . . . . . . Searches Triggered . | . . . . . . . . Construction Impeded . | . . . . . . . . Haulers Reinforced . | . . . . . . . . Active Scanning Responses . | . . . . . . . . Cargo Convoy Interrupts . | . . . . . . . . Stealth | -11 -10 -10 -9 -9 -9 -7 -7 --------- Run | Jun Mat Min Mat Sto Rec Fac DSF Distress Signals 3 | . . . 1 1 1 . . Communications Jammed . | . . . . . . . . Distress Signals . | . . . . . . . . Times Spotted 83 | . 15 2 25 25 3 . 13 Peak Tracking Total 8 | . 5 2 8 6 1 . 4 Tactical Retreats 5 | . . . 2 1 . . 2 Traps | -11 -10 -10 -9 -9 -9 -7 -7 ------- Run | Jun Mat Min Mat Sto Rec Fac DSF Traps Triggered 2 | . . . . 2 . . . Indirectly . | . . . . . . . . Trap Hack Attempts . | . . . . . . . . Triggered . | . . . . . . . . Disarmed . | . . . . . . . . Reprogrammed . | . . . . . . . . Reused . | . . . . . . . . Traps Extracted . | . . . . . . . . Installed . | . . . . . . . . Triggered . | . . . . . . . . Machines | -11 -10 -10 -9 -9 -9 -7 -7 ---------- Run | Jun Mat Min Mat Sto Rec Fac DSF Machines Disabled 7 | . . . 1 6 . . . Max in Single Turn 1 | . . . 1 1 . . . Machines Repaired . | . . . . . . . . Machines Sabotaged . | . . . . . . . . Overloaded Fab Kills . | . . . . . . . . Hacking | -11 -10 -10 -9 -9 -9 -7 -7 --------- Run | Jun Mat Min Mat Sto Rec Fac DSF Machines Accessed 10 | . 3 . 2 3 1 1 . Terminals 10 | . 3 . 2 3 1 1 . Fabricators . | . . . . . . . . Repair Stations . | . . . . . . . . Recycling Units . | . . . . . . . . Scanalyzers . | . . . . . . . . Garrison Access . | . . . . . . . . Total Hacks 21 | . 7 . 5 6 2 1 . Successful 13 | . 4 . 3 3 2 1 . Failed 6 | . 2 . 1 3 . . . Catastrophic . | . . . . . . . . Database Lockouts 2 | . 1 . 1 . . . . Manual 23 | . 8 . 7 6 2 . . Terminals 21 | . 7 . 5 6 2 1 . Fabricators . | . . . . . . . . Repair Stations . | . . . . . . . . Recycling Units . | . . . . . . . . Scanalyzers . | . . . . . . . . Garrison Access . | . . . . . . . . Terminal Hacks 6 | . 1 . 1 2 1 1 . Record 1 | . . . . . 1 . . Robot Analysis 3 | . 1 . 1 1 . . . Open DSF 1 | . . . . . . 1 . Branch Access Points 1 | . . . . 1 . . . Fabricator Hacks . | . . . . . . . . Repair Station Hacks . | . . . . . . . . Recycling Unit Hacks . | . . . . . . . . Scanalyzer . | . . . . . . . . Garrison Access Hacks . | . . . . . . . . Unauthorized Hacks 7 | . 3 . 2 1 1 . . Terminals 7 | . 3 . 2 1 1 . . Botnet 6 | . 2 . 2 1 1 . . Operators 1 | . 1 . . . . . . Fabricators . | . . . . . . . . Repair Stations . | . . . . . . . . Recycling Units . | . . . . . . . . Scanalyzers . | . . . . . . . . Garrison Access . | . . . . . . . . Data Cores Recovered 1 | . 1 . . . . . . Used . | . . . . . . . . Hacking Detections 6 | . 1 . 2 3 . . . Full Trace Events . | . . . . . . . . Feedback Events . | . . . . . . . . Feedback Blocked . | . . . . . . . . Robot Schematics Acquired . | . . . . . . . . Robots Built . | . . . . . . . . Authchips . | . . . . . . . . Time . | . . . . . . . . Total Robot Build Rating . | . . . . . . . . Part Schematics Acquired . | . . . . . . . . Parts Built . | . . . . . . . . Authchips . | . . . . . . . . Time . | . . . . . . . . Total Part Build Rating . | . . . . . . . . Parts Repaired . | . . . . . . . . Time . | . . . . . . . . Parts Recycled . | . . . . . . . . Recycled Matter . | . . . . . . . . Retrieved Matter . | . . . . . . . . Retrieved Components . | . . . . . . . . Parts Scanalyzed . | . . . . . . . . Part Schematics Acquired . | . . . . . . . . Parts Damaged . | . . . . . . . . Bothacking | -11 -10 -10 -9 -9 -9 -7 -7 ------------ Run | Jun Mat Min Mat Sto Rec Fac DSF Used RIF Installer . | . . . . . . . . Robots Hacked . | . . . . . . . . Non-combat . | . . . . . . . . Combat . | . . . . . . . . Robot Hacks Applied . | . . . . . . . . Relay Couplers Released . | . . . . . . . . Fabnet Peak Effective % . | . . . . . . . . Robots Rewired 6 | . . . . . 6 . . Allies Hacked . | . . . . . . . . Hacks Repelled . | . . . . . . . . Allies | -11 -10 -10 -9 -9 -9 -7 -7 -------- Run | Jun Mat Min Mat Sto Rec Fac DSF Total Allies 8 | . . . . 2 6 . . Largest Group 6 | . . . . 2 6 6 6 Highest-Rated Group 115 | . . . . 115 87 87 87 Highest-Rated Ally 100 | . . . . 100 27 27 27 Total Orders . | . . . . . . . . Ally Attacks 48 | . . . . 36 5 . 7 Total Damage 1885 | . . . . 1740 83 . 62 Kills 26 | . . . . 24 1 . 1 Allies Corrupted 1 | . . . . . . . 1 Allies Melted . | . . . . . . . . Intel | -11 -10 -10 -9 -9 -9 -7 -7 ------- Run | Jun Mat Min Mat Sto Rec Fac DSF Robot Analysis Total 3 | . 1 . 1 1 . . . Derelict Logs Recovered 2 | . . 2 . . . . . Drone Launches . | . . . . . . . . Drone Recoveries . | . . . . . . . . Exploration | -11 -10 -10 -9 -9 -9 -7 -7 ------------- Run | Jun Mat Min Mat Sto Rec Fac DSF Turns Passed 3993 | 64 591 298 870 656 919 288 307 Spaces Moved 2334 | 48 372 238 516 449 441 150 120 Core 83 | 8 . . . . 75 . . Treads 104 | . . . . . . 104 . Legs 2073 | 40 372 238 516 449 330 46 82 Wheels . | . . . . . . . . Hover . | . . . . . . . . Flight 74 | . . . . . 36 . 38 Fastest Speed 50 | 50 120 120 120 120 50 166 67 Average Speed 135 | 108 120 120 120 120 169 185 149 Slowest Speed 350 | 120 120 120 190 190 350 221 176 Overloaded Moves . | . . . . . . . . Propulsion Burnouts . | . . . . . . . . Robots Hopped . | . . . . . . . . Cave-ins Triggered . | . . . . . . . . Exploration Rate (%) 46 | 4 64 42 43 67 87 5 62 Regions Visited 7 Branch Regions 3 Pre-discovered Areas . | . . . . . . . . Known Exits Taken 3 | . . . 1 1 . 1 . Unknown Exits Taken 4 | 1 1 1 . . 1 . . Scrap Searched 1 | . . 1 . . . . . Spaces Dug . | . . . . . . . . Terrain Destroyed 8 | . . . . 8 . . . Melee . | . . . . . . . . Projectile . | . . . . . . . . AOE 8 | . . . . 8 . . . Terrain Rammed . | . . . . . . . . Walls Destroyed . | . . . . . . . . Machines Disabled . | . . . . . . . . Actions | -11 -10 -10 -9 -9 -9 -7 -7 --------- Run | Jun Mat Min Mat Sto Rec Fac DSF Total 2806 | 58 438 248 639 516 575 157 175 Wait 110 | . 11 10 28 2 57 1 1 Move 2327 | 47 371 237 515 448 440 149 120 Hop . | . . . . . . . . Pick Up 39 | 5 8 . 10 6 3 2 5 Fast Attach 27 | 3 1 . 6 13 . 1 3 Attach 20 | 3 . . 6 . 5 2 4 Detach 6 | . . . 1 3 2 . . Swap 14 | . 5 . 4 2 2 1 . Drop 43 | . 3 . 6 15 18 . 1 Fire 178 | . 39 1 63 27 24 1 23 Melee 18 | . . . . . . . 18 Ram . | . . . . . . . . Kick . | . . . . . . . . Crush . | . . . . . . . . Escape Stasis . | . . . . . . . . Rewire 24 | . . . . . 24 . . Trap . | . . . . . . . . Miscellaneous . | . . . . . . . . Route ------- -11/Junkyard -10/Materials (discovered 2 exits: *Mat / [*Min]) -10/Mines -9/Materials (discovered 3 exits: [*Mat x2] / *Sto) -9/Storage (discovered 2 exits: [*Mat] / *Rec) -9/Recycling -7/Factory (discovered 2 exits: [*Fac] / DSF) -7/DSF History --------- Turn | Location | Event 4 | -11/Junkyard | Discovered new exit (range 15) 65 | -11/Junkyard | Entered Materials 226 | -10/Materials | Discovered new exit (range 8) 282 | -10/Materials | Central database locked down 301 | -10/Materials | Build established: Mutant 521 | -10/Materials | Discovered new exit (range 8) 656 | -10/Materials | Entered Mines 677 | -10/Mines | Met a Derelict bent on vengeance 755 | -10/Mines | Discovered new exit (range 10) 846 | -10/Mines | Learned Materials garrison access intel 954 | -10/Mines | Entered Materials 954 | -9/Materials | Evolved 2 slots: Propulsion x2 955 | -9/Materials | Identified exit to Storage 1110 | -9/Materials | Central database locked down 1127 | -9/Materials | Discovered new exit (range 16) 1351 | -9/Materials | Destroyed 8 combat bots 1509 | -9/Materials | Lost 3 parts (1p2n) 1813 | -9/Materials | Discovered new exit (range 7) 1824 | -9/Materials | Entered Storage 1916 | -9/Storage | Met 01-MTF 2177 | -9/Storage | Discovered new exit (range 16) 2214 | -9/Storage | Core integrity fell below 50% 2219 | -9/Storage | Identified exit to Recycling 2381 | -9/Storage | Garrison activated, responded to threat 2480 | -9/Storage | Entered Recycling 2480 | -9/Recycling | Accompanied by 1 ally (01-MTF) 2485 | -9/Recycling | 01-MTF left 2488 | -9/Recycling | Found Scrap Engine 3052 | -9/Recycling | Build established: Commander-Construct 3364 | -9/Recycling | Discovered new exit (range 16) 3399 | -9/Recycling | Entered Factory 3399 | -7/Factory | Accompanied by 6 allies 3399 | -7/Factory | Evolved 4 slots: Utility x3, Weapon x1 3637 | -7/Factory | Discovered new exit (range 9) 3685 | -7/Factory | Identified exit to DSF 3687 | -7/Factory | Entered DSF 3687 | -7/DSF | Accompanied by 6 allies 3747 | -7/DSF | Additional patrols routed to DSF 3924 | -7/DSF | Lost 3 parts (1n2w) 3946 | -7/DSF | Core integrity fell below 50% 3973 | -7/DSF | Core integrity fell below 20% 3994 | -7/DSF | Destroyed by G-47 Trooper with Particle Gun Last Messages --------------- 03967_ Flying Surge-Aluminum Exoskeleton core remains intact and functional. 03968_ Scrap Engine modifies Flying Surge-Aluminum Exoskeleton: Penalty -30, Move Heat +1, Burnout -40 Expanded to 2 slots (? T102 S32) Renamed Carbon-Surge Exoskeleton. 03968_ Knocked back. 03970_ Destroyed Transmission Jammer. 03970_ Great Axe follow-up attack on H-61 Shepherd. 03972_ Knocked back. 03976_ Penetrated by Slug. 03978_ Scrap Engine modifies Carbon-Surge Exoskeleton: Time/Move -35, Energy -1.5, Burnout +40 Expanded to 3 slots (? T67 S48) Renamed Flying Surge Exoskeleton. 03978_ H-61 Shepherd destroyed. 03979_ Penetrated by Slug. 03987_ H-55 Commando Gauss Rifle severed. 03992_ H-55 Commando destroyed. 03993_ Imp. Targeting Computer destroyed. Map ----- +----------------------------------------------------+ | | | ???????????????????????????????????????????????? | | ???????????????????????????????????????????????? | | ???????????????????????????????????????????????? | | ???????##??????????????????????????????????????? | | ???????""#????????????##???????????????????????? | | ???????#"#?????????### #???????????????????????? | | ????####"##???????##"# ####????????????????????? | | ????#"""""######### #????????????????????? | | ????#"""%%##//#///#!!% #????????????????????? | | ?#"##"" !%= //%%*% #????????????????????? | | ?#"""""*%[% ! !%/ #????????????????????? | | ??###"" %## # *### ###????????????????????? | | ????###! ### # ### ###????????????????????? | | ?????##*!##########** !!?????????????????????? | | ?????#/% //#??????#** !!#????????????????????? | | ?????#/[ //#???????** !!#????????????????????? | | ?????## "##??????##; ###????????????????????? | | ?????# ///#??????#]] !!#????????????????????? | | ?????# ^^/#??????#]] !!#????????????????????? | | ?????# ^^/#???????]]= !!?????????????????????? | | ????### /############]! ###?###????????????????? | | ????#!! %## #!!!###%= ##?]]]#???#????????????? | | ???##!![!## #!!!##!!! ##]]]# ## #??????? | | ???#" %%* a a !!#??????? | | ???#" !%% %%% =@ !!#??????? | | ???## % %% %[% !!#??????? | | ????# ##!!!#!!!;#a ga##!!!# ## #??????? | | ????# ##!!!#!!!### g##?!!!#???#????????????? | | ????### ##########?# #???###????????????????? | | ?????? ?????????!! !!?????????????????????? | | ?????# ????????#!! !!#????????????????????? | | ?????# ????????#!! !!#????????????????????? | | ?????## #????????### ###????????????????????? | | ?????? /??????????= !??????????????????????? | | ?????? /??????????= !??????????????????????? | | ??????# #?????????== !!?????????????????????? | | ??????? ??????????## ##?????????????????????? | | ??????? ???????????# #??????????????????????? | | ??????? ??????????? ???????????????????????? | | ????????????????????? ???????????????????????? | | ???????????????????????????????????????????????? | | ???????????????????????????????????????????????? | | ???????????????????????????????????????????????? | | ???????????????????????????????????????????????? | | ???????????????????????????????????????????????? | | ???????????????????????????????????????????????? | | ???????????????????????????????????????????????? | | ???????????????????????????????????????????????? | | ???????????????????????????????????????????????? | +----------------------------------------------------+ Best States ------------- Heat Dissipation 50 Energy Generation 17 Energy Capacity 356 Matter Stores 300 Matter Capacity 300 Sight Range 16 Terrain Scan Density 10 Jamming Range 12 Evasion (%) 55 Targeting Accuracy 6 Recoil Reduction 2 Item Schematics ----------------- None Robot Schematics ------------------ None Fabricated ------------ Nothing Alien Tech Used ----------------- None Achievements -------------- None Challenges ------------ None Game ------ Seed FissionFissionChainsword Manual? 0 Play Time 00:33:12 Cumulative 34.5 hours Start 2023.04.03 @ 12:49:47 End 2023.04.03 @ 13:19:12 Sessions 1 Manual Loads 0 Difficulty Rogue Special Mode None Game No. 55 Rogue 39 Adventurer 16 Explorer 0 Win Type - Total 1 Types 1/0/0/0/0/0/0/0/0 Lore% 28 Gallery% 41 Achievement% 39 Wizard Run 0 Options --------- ASCII 0 Keyboard 0 Movement Mouse Keybinds 0 Fullscreen 0 Font 18/SmallcapsGlow Map View 66x50 Tactical HUD 1 Map Filters NONE Filters NONE Steam X RUN: 9bc5d6a1-e2c2-4434-a0f8-8992ae62e327